[Event "Chinggis Invitational IV 2018"]
[Site "Ulaanbaatar"]
[Date "2018.08.10"]
[Round "3"]
[White "Izoria, Zviad"]
[Black "Bilguun, Sumiya"]
[Result "1/2-1/2"]
[WhiteElo "2606"]
[BlackElo "2479"]
[Annotator "NA RC"]
[PlyCount "13"]
[EventDate "2018.08.08"]
[EventType "tourn"]
[EventCountry "MGL"]
[SourceTitle "playchess.com"]
[Source "ChessBase"]
[SourceQuality "1"]
[TimeControl "40/5400+30:1800+30"]

{[%evp 9,16,-122,42,-128,-19,-221,20,12,-2]} 1. e4 {[%emt 0:00:00]} c5 {[%emt 0:00:00]} 2. Nf3 {[%emt 0:04:19]} e6 {[%emt 1:31:00] d4cxd4Nxd4a6Nc3Qc7a3Nf6 [%clk 1:30:15]} 3. g4 {[%emt 0:04:37]} h6 {[%emt 0:00:00]} 4. h3 {[%emt 0:11:08]} Nc6 {[%emt 0:00:00] Be3 [%clk 1:10:26] b5 [%clk 1:19:35] Nxc6 [%clk 1:02:59] dxc6 [%clk 1:19:38] f4 [%clk 0:58:20] Bb7 [%clk 1:19:18]} 5. e5 {[%emt 0:24:39] c5 [%clk 1:00:10] Rh2 [%clk 0:46:15] Nd5 [%clk 0:58:54] Nxd5 [%clk 0:46:22] Bxd5 [%clk 0:59:09]} (5. d4 $11) 5... c4 {[%emt 0:00:00] Bc6 [%clk 0:56:08] Qc2 [%clk 0:29:56]} (5... Qc7 $17 6. Qe2 h5) 6. b4 $2 {[%emt 0:00:00] Bg2 [%clk 0:29:22]} (6. Bxc4 $14 {stays ahead.} d5 7. exd6) 6... Be7 {[%emt 0:00:00] Bxc6+ [%clk 0:23:21] Qxc6 [%clk 0:50:48] Qg2 [%clk 0:23:33] Qc8 [%clk 0:47:51] Qe4 [%clk 0:23:44] O-O [%clk 0:46:06] Rd2 [%clk 0:19:44] Rb8 [%clk 0:35:37]} ({Much weaker is} 6... Bxb4 $6 7. c3 $11) ({But not} 6... Nxb4 $6 7. Bxc4 d5 8. Be2 $11) ({Better is} 6... b5 $17 7. a3 Bb7) 7. Ke2 $19 {[%emt 0:31:37] bxa3 [%clk 0:34:03] Rxa3 [%clk 0:14:47] Rd8 [%clk 0:34:11] Rxd8+ [%clk 0:14:13] Qxd8 [%clk 0:32:16] Bc1 [%clk 0:14:29] Qd7 [%clk 0:30:44] Rd3 [%clk 0:11:15] Qa4 [%clk 0:30:55] Ra3 [%clk 0:11:18] Qd7 [%clk 0:31:20] Rd3 [%clk 0:10:52] Qa4 [%clk 0:31:44] Ra3 [%clk 0:10:33]} (7. Bxc4 $11 {and White stays safe.} Bxb4 8. Ba3) 1/2-1/2

[Event "Chinggis Invitational IV 2018"]
[Site "Ulaanbaatar"]
[Date "2018.08.11"]
[Round "4"]
[White "Bilguun, Sumiya"]
[Black "Shomoev, Anton"]
[Result "1/2-1/2"]
[ECO "B33"]
[WhiteElo "2479"]
[BlackElo "2552"]
[Annotator "ChessBase"]
[PlyCount "68"]
[EventDate "2018.08.08"]
[EventType "tourn"]
[EventCountry "MGL"]
[SourceTitle "playchess.com"]
[Source "ChessBase"]
[SourceQuality "1"]
[TimeControl "40/5400+30:1800+30"]

1. e4 {[%emt 0:00:00]} c5 {[%emt 0:00:00]} 2. Nf3 {[%emt 0:00:00]} Nc6 {[%emt 0:00:00]} 3. d4 {[%emt 0:00:04]} cxd4 {[%emt 0:00:00]} 4. Nxd4 {[%emt 0:00:09]} Nf6 {[%emt 0:00:00]} 5. Nc3 {[%emt 0:00:14]} e5 {[%emt 0:00:00]} 6. Ndb5 {[%emt 0:00:30]} d6 {[%emt 0:00:00]} 7. Bg5 {[%emt 0:00:34]} a6 {[%emt 0:00:02]} 8. Na3 {[%emt 0:00:09]} b5 {[%emt 0:00:07]} 9. Nd5 {[%emt 0:00:13]} Be7 {[%emt 0:00:04]} 10. Bxf6 {[%emt 0:00:10]} Bxf6 {[%emt 0:00:04]} 11. c4 {[%emt 0:00:08]} Nd4 {[%emt 0:00:07]} 12. cxb5 {[%emt 0:00:17]} Bb7 {[%emt 0:00:06]} 13. Nc3 {[%emt 0:03:49]} O-O {[%emt 0:02:21]} 14. Bd3 {[%emt 0:11:57]} axb5 {[%emt 0:00:41]} 15. Naxb5 {[%emt 0:00:13]} d5 {[%emt 0:00:14]} 16. Nxd4 {[%emt 0:01:17]} dxe4 {[%emt 0:02:26]} 17. Nxe4 {[%emt 0:11:48]} Qxd4 {[%emt 0:00:43]} 18. Nxf6+ {[%emt 0:03:55]} gxf6 {[%emt 0:05:14]} 19. Bf5 {[%emt 0:11:01]} Qf4 {[%emt 0:33:44]} 20. Qg4+ {[%emt 0:02:42]} Qxg4 {[%emt 0:00:48]} 21. Bxg4 {[%emt 0:00:10]} Rfb8 {[%emt 0:00:03]} 22. b3 {[%emt 0:12:10]} Ra3 {[%emt 0:01:50]} 23. Bd7 {[%emt 0:02:46]} Rd8 {[%emt 0:08:49]} 24. Ba4 {[%emt 0:03:32]} f5 {[%emt 0:07:57]} 25. f3 {[%emt 0:06:00]} Ba6 {[%emt 0:02:46]} 26. g3 {[%emt 0:04:27]} e4 {[%emt 0:06:28]} 27. fxe4 {[%emt 0:10:08]} fxe4 {[%emt 0:00:44]} 28. Kf2 {[%emt 0:01:35]} Rd2+ {[%emt 0:01:10]} 29. Ke3 {[%emt 0:00:06]} Raxa2 {[%emt 0:01:41]} 30. Rxa2 {[%emt 0:00:45]} Rxa2 {[%emt 0:00:06]} 31. Re1 {[%emt 0:02:18]} Bd3 {[%emt 0:03:17]} 32. Bc6 {[%emt 0:00:49]} Rb2 {[%emt 0:00:06]} 33. Bxe4 {[%emt 0:06:25]} Bxe4 {[%emt 0:00:06]} 34. Kxe4 {[%emt 0:00:07]} Rxb3 {[%emt 0:00:02]} 1/2-1/2

[Event "Chinggis Invitational IV 2018"]
[Site "Ulaanbaatar"]
[Date "2018.08.15"]
[Round "8"]
[White "Lkhagvasuren, Tsedvee"]
[Black "Batchuluun, Tsegmed"]
[Result "1-0"]
[ECO "D00"]
[WhiteElo "2280"]
[BlackElo "2571"]
[Annotator "ChessBase"]
[PlyCount "107"]
[EventDate "2018.08.08"]
[EventType "tourn"]
[EventCountry "MGL"]
[SourceTitle "playchess.com"]
[Source "ChessBase"]
[SourceQuality "1"]
[TimeControl "40/5400+30:1800+30"]

1. d4 {[%emt 0:00:00]} d5 {[%emt 0:00:00]} 2. Bf4 {[%emt 0:00:00]} Nf6 {[%emt 0:00:42]} 3. e3 {[%emt 0:00:21]} c5 {[%emt 0:00:06]} 4. c3 {[%emt 0:01:31]} Nc6 {[%emt 0:00:06]} 5. Bd3 {[%emt 0:00:48]} Qb6 {[%emt 0:02:20]} 6. b3 {[%emt 0:08:14]} Bg4 {[%emt 0:02:21]} 7. Nf3 {[%emt 0:02:13]} e6 {[%emt 0:00:49]} 8. O-O {[%emt 0:03:57]} Be7 {[%emt 0:00:42]} 9. Qe2 {[%emt 0:08:31]} O-O {[%emt 0:02:10]} 10. h3 {[%emt 0:06:46]} Bh5 {[%emt 0:00:59]} 11. Nbd2 {[%emt 0:00:44]} cxd4 {[%emt 0:02:51]} 12. exd4 {[%emt 0:01:05]} Rac8 {[%emt 0:00:26]} 13. a4 {[%emt 0:01:54]} Qd8 {[%emt 0:16:16]} 14. Qe3 {[%emt 0:02:02]} Bg6 {[%emt 0:00:17]} 15. Bb5 {[%emt 0:07:30]} a6 {[%emt 0:02:31]} 16. Be2 {[%emt 0:12:17]} Bd6 {[%emt 0:15:49]} 17. Ne5 {[%emt 0:02:19]} Nxe5 {[%emt 0:00:43]} 18. dxe5 {[%emt 0:01:26]} Bc5 {[%emt 0:00:06]} 19. Qg3 {[%emt 0:00:13]} Nh5 {[%emt 0:04:40]} 20. Bxh5 {[%emt 0:00:44]} Bxh5 {[%emt 0:00:04]} 21. Be3 {[%emt 0:00:26]} Qb6 {[%emt 0:05:15]} 22. Bxc5 {[%emt 0:01:12]} Qxc5 {[%emt 0:01:23]} 23. Rac1 {[%emt 0:00:42]} a5 {[%emt 0:03:53]} 24. c4 {[%emt 0:01:59]} Qd4 {[%emt 0:08:48]} 25. Qc3 {[%emt 0:06:07]} Qxc3 {[%emt 0:00:04]} 26. Rxc3 {[%emt 0:00:04]} d4 {[%emt 0:01:24]} 27. Rcc1 {[%emt 0:00:40]} Be2 {[%emt 0:00:17]} 28. Rfe1 {[%emt 0:00:12]} d3 {[%emt 0:00:04]} 29. b4 {[%emt 0:01:57]} axb4 {[%emt 0:02:29]} 30. Rb1 {[%emt 0:00:13]} Rc5 {[%emt 0:13:55]} 31. Rxb4 {[%emt 0:00:14]} Rxe5 {[%emt 0:00:06]} 32. Rxb7 {[%emt 0:00:10]} Ra5 {[%emt 0:00:03]} 33. Ra1 {[%emt 0:00:13]} Rfa8 {[%emt 0:00:08]} 34. f3 {[%emt 0:00:29]} Kf8 {[%emt 0:01:30]} 35. Rb4 {[%emt 0:00:27]} Ke7 {[%emt 0:00:20]} 36. Kf2 {[%emt 0:00:33]} e5 {[%emt 0:05:01]} 37. Nb3 {[%emt 0:01:07]} R5a7 {[%emt 0:00:04]} 38. a5 {[%emt 0:01:19]} f5 {[%emt 0:02:41]} 39. Rb6 {[%emt 0:03:00]} e4 {[%emt 0:00:55]} 40. fxe4 {[%emt 0:00:00]} fxe4 {[%emt 0:00:00]} 41. a6 {[%emt 0:04:58]} Bh5 {[%emt 0:01:10]} 42. Ke3 {[%emt 0:00:43]} Kd7 {[%emt 0:05:09]} 43. Nc5+ {[%emt 0:14:42]} Kc7 {[%emt 0:00:53]} 44. Re6 {[%emt 0:01:12]} Bf7 {[%emt 0:21:36]} 45. Rxe4 {[%emt 0:01:28]} Kb6 {[%emt 0:00:41]} 46. Nxd3 {[%emt 0:00:54]} Bg8 {[%emt 0:05:11]} 47. c5+ {[%emt 0:01:08]} Kc6 {[%emt 0:00:36]} 48. Ra5 {[%emt 0:00:28]} Kd7 {[%emt 0:00:48]} 49. Nb4 {[%emt 0:00:31]} Bf7 {[%emt 0:00:27]} 50. Rb5 {[%emt 0:00:55]} Bg6 {[%emt 0:00:31]} 51. c6+ {[%emt 0:00:26]} Kd6 {[%emt 0:00:37]} 52. Rd4+ {[%emt 0:00:15]} Ke6 {[%emt 0:00:14]} 53. Rb7 {[%emt 0:00:28]} Be8 {[%emt 0:00:08]} 54. Re4+ {[%emt 0:00:18] Kd5 [%clk 0:00:00]} 1-0